[Event "*** MasterClass Titled Tuesday Blitz"]
[Site "Chess.com"]
[Date "2017.12.05"]
[Round "2"]
[White "Hanging_pointer"]
[Black "ZCorrales"]
[Result "1-0"]
[WhiteElo "2313"]
[BlackElo "2120"]
[TimeControl "180+2"]
[EndTime "14:37:02 PST"]
[Termination "Hanging_pointer won by checkmate"]

1. e4 {[%clk 0:02:56.8]} 1... c5 {[%clk 0:03:00]} 2. Nf3 {[%clk 0:02:56.5]} 2...
d6 {[%clk 0:03:01]} 3. d4 {[%clk 0:02:57.6]} 3... cxd4 {[%clk 0:03:01.3]} 4.
Nxd4 {[%clk 0:02:59.5]} 4... Nf6 {[%clk 0:03:02.6]} 5. Nc3 {[%clk 0:03:00.9]}
5... g6 {[%clk 0:03:03.9]} 6. Be3 {[%clk 0:03:01.6]} 6... Bg7 {[%clk 0:03:05.4]}
7. f3 {[%clk 0:03:03.1]} 7... Nc6 {[%clk 0:03:06.5]} 8. Qd2 {[%clk 0:03:04.4]}
8... O-O {[%clk 0:03:07.3]} 9. g4 {[%clk 0:03:05.7]} 9... Nxd4 {[%clk
0:02:59.9]} 10. Bxd4 {[%clk 0:03:07.2]} 10... Be6 {[%clk 0:03:00.8]} 11. h4
{[%clk 0:03:08.3]} 11... Qa5 {[%clk 0:02:58]} 12. h5 {[%clk 0:03:06]} 12... Rfc8
{[%clk 0:02:56.7]} 13. a3 {[%clk 0:03:07.3]} 13... Rab8 {[%clk 0:02:55]} 14. h6
{[%clk 0:02:58.3]} 14... Bh8 {[%clk 0:02:53.9]} 15. b4 {[%clk 0:02:58.8]} 15...
Qc7 {[%clk 0:02:51.3]} 16. Nb5 {[%clk 0:02:17]} 16... Qxc2 {[%clk 0:02:48.8]}
17. Qxc2 {[%clk 0:02:16.7]} 17... Rxc2 {[%clk 0:02:49.4]} 18. Bd3 {[%clk
0:02:18.6]} 18... Rcc8 {[%clk 0:02:36.9]} 19. Nxa7 {[%clk 0:02:14.3]} 19... Rf8
{[%clk 0:02:35.8]} 20. Rc1 {[%clk 0:02:07.6]} 20... Ra8 {[%clk 0:02:27.4]} 21.
Be3 {[%clk 0:02:00.4]} 21... Nd7 {[%clk 0:02:25.5]} 22. Ke2 {[%clk 0:01:50.9]}
22... Ne5 {[%clk 0:02:19.6]} 23. Bb5 {[%clk 0:01:48]} 23... d5 {[%clk
0:02:18.8]} 24. exd5 {[%clk 0:01:39.6]} 24... Bxd5 {[%clk 0:02:19]} 25. Rhf1
{[%clk 0:01:37.4]} 25... f5 {[%clk 0:01:56.4]} 26. g5 {[%clk 0:01:35.5]} 26...
f4 {[%clk 0:01:56.7]} 27. Bb6 {[%clk 0:01:35.5]} 27... Nf7 {[%clk 0:01:54.4]}
28. Rc5 {[%clk 0:01:29.2]} 28... e6 {[%clk 0:01:53.1]} 29. Rc7 {[%clk
0:01:21.5]} 29... Nxg5 {[%clk 0:01:38.6]} 30. Bc5 {[%clk 0:01:21.8]} 30... Rf7
{[%clk 0:01:37.4]} 31. Rxf7 {[%clk 0:01:11.4]} 31... Kxf7 {[%clk 0:01:37.8]} 32.
a4 {[%clk 0:01:07.3]} 32... Be5 {[%clk 0:01:30.9]} 33. a5 {[%clk 0:01:01.2]}
33... Bb8 {[%clk 0:01:30.2]} 34. Nc8 {[%clk 0:01:01.6]} 34... Bc7 {[%clk
0:01:24.9]} 35. Nb6 {[%clk 0:00:53.8]} 35... Rd8 {[%clk 0:01:24.9]} 36. Nxd5
{[%clk 0:00:48.6]} 36... Rxd5 {[%clk 0:01:24.8]} 37. Bc4 {[%clk 0:00:42.6]}
37... Re5+ {[%clk 0:01:25.3]} 38. Kf2 {[%clk 0:00:43.9]} 38... Rf5 {[%clk
0:01:02.5]} 39. Rd1 {[%clk 0:00:40.8]} 39... Bxa5 {[%clk 0:01:01.5]} 40. Rd7+
{[%clk 0:00:39]} 40... Ke8 {[%clk 0:00:58.4]} 41. Rxb7 {[%clk 0:00:33.6]} 41...
Kd8 {[%clk 0:00:47.3]} 42. Be7+ {[%clk 0:00:20]} 42... Ke8 {[%clk 0:00:43.1]}
43. Bxg5 {[%clk 0:00:20.2]} 43... Rxg5 {[%clk 0:00:43.2]} 44. bxa5 {[%clk
0:00:21.5]} 44... Rxa5 {[%clk 0:00:44.1]} 45. Rxh7 {[%clk 0:00:21.3]} 45... Ra4
{[%clk 0:00:42.5]} 46. Bxe6 {[%clk 0:00:21.2]} 46... Rb4 {[%clk 0:00:42.1]} 47.
Rg7 {[%clk 0:00:20.8]} 47... Rb2+ {[%clk 0:00:42.3]} 48. Kg1 {[%clk 0:00:21.3]}
48... Re2 {[%clk 0:00:42.7]} 49. h7 {[%clk 0:00:21.6]} 49... Re1+ {[%clk
0:00:41.4]} 50. Kg2 {[%clk 0:00:22.3]} 50... Re2+ {[%clk 0:00:42.5]} 51. Kh3
{[%clk 0:00:23.1]} 51... Rxe6 {[%clk 0:00:41.5]} 52. h8=Q# {[%clk 0:00:24]} 1-0

[Event "*** MasterClass Titled Tuesday Blitz"]
[Site "Chess.com"]
[Date "2017.12.05"]
[Round "2"]
[White "krzyzan94"]
[Black "Blitzstream"]
[Result "1-0"]
[WhiteElo "2598"]
[BlackElo "2502"]
[TimeControl "180+2"]
[EndTime "14:37:18 PST"]
[Termination "krzyzan94 won by checkmate"]

1. Nf3 {[%clk 0:03:01.9]} 1... e6 {[%clk 0:03:00.4]} 2. Ng1 {[%clk 0:03:03.8]}
2... g5 {[%clk 0:03:01]} 3. d4 {[%clk 0:03:05.7]} 3... Bg7 {[%clk 0:03:00.9]} 4.
h4 {[%clk 0:03:02.2]} 4... g4 {[%clk 0:03:01.9]} 5. Be3 {[%clk 0:03:00.3]} 5...
h5 {[%clk 0:03:02.1]} 6. Nc3 {[%clk 0:03:00.5]} 6... Ne7 {[%clk 0:03:02.5]} 7.
f3 {[%clk 0:03:01.9]} 7... Nf5 {[%clk 0:03:03.4]} 8. Bg5 {[%clk 0:02:42.3]} 8...
f6 {[%clk 0:02:58.1]} 9. Bf4 {[%clk 0:02:41.8]} 9... Nc6 {[%clk 0:02:50.9]} 10.
d5 {[%clk 0:02:37.1]} 10... e5 {[%clk 0:02:41.4]} 11. e4 {[%clk 0:02:32]} 11...
exf4 {[%clk 0:02:31]} 12. exf5 {[%clk 0:02:32.5]} 12... Ne5 {[%clk 0:02:22.7]}
13. Qd4 {[%clk 0:02:19.6]} 13... d6 {[%clk 0:02:22.5]} 14. Bb5+ {[%clk 0:02:09]}
14... Kf8 {[%clk 0:02:21.7]} 15. O-O-O {[%clk 0:02:03]} 15... Bxf5 {[%clk
0:02:22]} 16. Kb1 {[%clk 0:02:02.1]} 16... a6 {[%clk 0:02:13.7]} 17. Bd3 {[%clk
0:02:00.7]} 17... Qd7 {[%clk 0:01:57]} 18. Nce2 {[%clk 0:01:58.2]} 18... Nxd3
{[%clk 0:01:25.8]} 19. cxd3 {[%clk 0:02:00.1]} 19... Re8 {[%clk 0:01:22.8]} 20.
Nxf4 {[%clk 0:02:01]} 20... Qb5 {[%clk 0:01:23.4]} 21. Nge2 {[%clk 0:01:54.3]}
21... Kf7 {[%clk 0:01:22.5]} 22. Ng3 {[%clk 0:01:54.3]} 22... Bd7 {[%clk
0:01:19.2]} 23. Ngxh5 {[%clk 0:01:53.5]} 23... Re5 {[%clk 0:01:04.7]} 24. Nxg7
{[%clk 0:01:49.5]} 24... Kxg7 {[%clk 0:01:06.6]} 25. h5 {[%clk 0:01:40.6]} 25...
Rhe8 {[%clk 0:00:57]} 26. fxg4 {[%clk 0:01:32.5]} 26... Qc5 {[%clk 0:00:46.1]}
27. Qxc5 {[%clk 0:01:27.3]} 27... dxc5 {[%clk 0:00:46.6]} 28. h6+ {[%clk
0:01:22.4]} 28... Kh7 {[%clk 0:00:47.6]} 29. Nh5 {[%clk 0:01:23.5]} 29... Rf8
{[%clk 0:00:41.4]} 30. Rdf1 {[%clk 0:01:23]} 30... Kg6 {[%clk 0:00:42.2]} 31.
Nxf6 {[%clk 0:01:14.5]} 31... Bb5 {[%clk 0:00:24.8]} 32. Rf3 {[%clk 0:00:47.7]}
32... Rxf6 {[%clk 0:00:23.2]} 33. h7 {[%clk 0:00:46.7]} 33... Rxf3 {[%clk
0:00:06.7]} 34. h8=Q {[%clk 0:00:33]} 34... Bxd3+ {[%clk 0:00:07.2]} 35. Ka1
{[%clk 0:00:33.7]} 35... Rfe3 {[%clk 0:00:06.9]} 36. Qg8+ {[%clk 0:00:21.8]}
36... Kf6 {[%clk 0:00:06.7]} 37. g5+ {[%clk 0:00:22.7]} 37... Kf5 {[%clk
0:00:07.5]} 38. Qf7+ {[%clk 0:00:22]} 38... Kg4 {[%clk 0:00:08]} 39. Qh5+ {[%clk
0:00:21.5]} 39... Kf5 {[%clk 0:00:07]} 40. g6+ {[%clk 0:00:22.6]} 40... Kf6
{[%clk 0:00:06.2]} 41. Qh4+ {[%clk 0:00:22.4]} 41... Kxg6 {[%clk 0:00:06.3]} 42.
a3 {[%clk 0:00:22.5]} 42... c4 {[%clk 0:00:05.2]} 43. Qh7+ {[%clk 0:00:22.9]}
43... Kg5 {[%clk 0:00:04]} 44. Qh6+ {[%clk 0:00:22.2]} 44... Kg4 {[%clk
0:00:03.3]} 45. Rh4+ {[%clk 0:00:21.3]} 45... Kg3 {[%clk 0:00:04.7]} 46. Qf4+
{[%clk 0:00:22.9]} 46... Kxg2 {[%clk 0:00:06.1]} 47. Rh2+ {[%clk 0:00:24.5]}
47... Kg1 {[%clk 0:00:06.6]} 48. Qf2# {[%clk 0:00:26.4]} 1-0

[Event "*** MasterClass Titled Tuesday Blitz"]
[Site "Chess.com"]
[Date "2017.12.05"]
[Round "2"]
[White "bascheyaro"]
[Black "saikrishnaReturns"]
[Result "1-0"]
[WhiteElo "2606"]
[BlackElo "2417"]
[TimeControl "180+2"]
[EndTime "14:37:26 PST"]
[Termination "bascheyaro won by checkmate"]

1. d4 {[%clk 0:03:01.9]} 1... Nf6 {[%clk 0:03:00.2]} 2. c4 {[%clk 0:03:03]} 2...
g6 {[%clk 0:03:00.4]} 3. Nf3 {[%clk 0:03:04.4]} 3... Bg7 {[%clk 0:03:02]} 4. Nc3
{[%clk 0:03:05]} 4... d6 {[%clk 0:03:02.9]} 5. e3 {[%clk 0:03:05.2]} 5... O-O
{[%clk 0:03:04.4]} 6. Be2 {[%clk 0:03:06.7]} 6... Nfd7 {[%clk 0:03:03.6]} 7. O-O
{[%clk 0:03:07.7]} 7... e5 {[%clk 0:03:04.6]} 8. Qc2 {[%clk 0:03:09.1]} 8... Nc6
{[%clk 0:03:05.1]} 9. Rd1 {[%clk 0:03:08.8]} 9... f5 {[%clk 0:03:01.2]} 10. dxe5
{[%clk 0:03:05.8]} 10... dxe5 {[%clk 0:03:02.2]} 11. c5 {[%clk 0:03:02.3]} 11...
e4 {[%clk 0:02:56.2]} 12. Nd4 {[%clk 0:03:03.1]} 12... Nxd4 {[%clk 0:02:45.7]}
13. exd4 {[%clk 0:03:04.3]} 13... c6 {[%clk 0:02:45.4]} 14. d5 {[%clk
0:03:05.1]} 14... cxd5 {[%clk 0:02:16.6]} 15. Nxd5 {[%clk 0:03:03.7]} 15... Ne5
{[%clk 0:02:16.9]} 16. Bf4 {[%clk 0:02:41.9]} 16... Qh4 {[%clk 0:02:01.7]} 17.
Bg3 {[%clk 0:02:28.7]} 17... Qg5 {[%clk 0:02:00.3]} 18. h4 {[%clk 0:02:23.6]}
18... Qh6 {[%clk 0:02:01.1]} 19. Ne7+ {[%clk 0:02:17.3]} 19... Kh8 {[%clk
0:02:01.2]} 20. Nxc8 {[%clk 0:02:18.4]} 20... f4 {[%clk 0:01:33.7]} 21. Nd6
{[%clk 0:02:04.4]} 21... fxg3 {[%clk 0:01:34]} 22. fxg3 {[%clk 0:02:06.3]} 22...
Qe3+ {[%clk 0:01:32.3]} 23. Kh2 {[%clk 0:02:06.6]} 23... Rf2 {[%clk 0:01:32.6]}
24. Rd2 {[%clk 0:01:34.8]} 24... Qxd2 {[%clk 0:00:21.4]} 25. Qxd2 {[%clk
0:01:30.8]} 25... Nf3+ {[%clk 0:00:22.3]} 26. Bxf3 {[%clk 0:01:32.2]} 26... Rxd2
{[%clk 0:00:23.5]} 27. Bxe4 {[%clk 0:01:33.7]} 27... Bxb2 {[%clk 0:00:23.2]} 28.
Rf1 {[%clk 0:01:29.8]} 28... Bd4 {[%clk 0:00:21.3]} 29. Bxb7 {[%clk 0:01:28.2]}
29... Rb8 {[%clk 0:00:19.3]} 30. c6 {[%clk 0:01:29.2]} 30... Bb6 {[%clk
0:00:19.4]} 31. Nc8 {[%clk 0:01:22.2]} 31... Rc2 {[%clk 0:00:13.9]} 32. Rf7
{[%clk 0:01:15.3]} 32... Rxc8 {[%clk 0:00:15]} 33. Bxc8 {[%clk 0:01:15.5]} 33...
Rxc6 {[%clk 0:00:16.6]} 34. Bg4 {[%clk 0:01:12.1]} 34... Rc3 {[%clk 0:00:17.4]}
35. Bf3 {[%clk 0:01:06.9]} 35... Ra3 {[%clk 0:00:15.4]} 36. Bd5 {[%clk
0:01:04.3]} 36... Bc5 {[%clk 0:00:16.1]} 37. Rc7 {[%clk 0:01:04.6]} 37... Bd6
{[%clk 0:00:16.7]} 38. Rc8+ {[%clk 0:01:04.7]} 38... Kg7 {[%clk 0:00:18.1]} 39.
Bb3 {[%clk 0:01:01.9]} 39... a5 {[%clk 0:00:18.3]} 40. Rc6 {[%clk 0:01:00.5]}
40... Be5 {[%clk 0:00:17.7]} 41. Ra6 {[%clk 0:01:00]} 41... Bf6 {[%clk
0:00:15.6]} 42. Ra7+ {[%clk 0:01:00.3]} 42... Kh6 {[%clk 0:00:14.8]} 43. Bg8
{[%clk 0:01:00.6]} 43... g5 {[%clk 0:00:16.2]} 44. Rxh7+ {[%clk 0:00:54.1]}
44... Kg6 {[%clk 0:00:17.5]} 45. h5+ {[%clk 0:00:55.4]} 45... Kf5 {[%clk
0:00:18.5]} 46. Rf7 {[%clk 0:00:47.1]} 46... Ke6 {[%clk 0:00:13.5]} 47. Rb7+
{[%clk 0:00:44.1]} 47... Kf5 {[%clk 0:00:13.4]} 48. h6 {[%clk 0:00:45.5]} 48...
Be5 {[%clk 0:00:14.2]} 49. Rb5 {[%clk 0:00:46.4]} 49... Kf6 {[%clk 0:00:14]} 50.
Rxe5 {[%clk 0:00:47.1]} 50... Kg6 {[%clk 0:00:13.8]} 51. h7 {[%clk 0:00:48]}
51... Kg7 {[%clk 0:00:15.2]} 52. Re7+ {[%clk 0:00:48.3]} 52... Kh8 {[%clk
0:00:16.5]} 53. Bb3 {[%clk 0:00:49.1]} 53... a4 {[%clk 0:00:17.4]} 54. Bc2
{[%clk 0:00:49.8]} 54... Rd3 {[%clk 0:00:15.2]} 55. Bxd3 {[%clk 0:00:50.4]}
55... g4 {[%clk 0:00:16.7]} 56. Re8+ {[%clk 0:00:51.8]} 56... Kg7 {[%clk
0:00:17.5]} 57. h8=Q+ {[%clk 0:00:53.4]} 57... Kf7 {[%clk 0:00:18]} 58. Qf8#
{[%clk 0:00:54.7]} 1-0

[Event "*** MasterClass Titled Tuesday Blitz"]
[Site "Chess.com"]
[Date "2017.12.05"]
[Round "2"]
[White "josemoramoron"]
[Black "kanachess88"]
[Result "1/2-1/2"]
[WhiteElo "2178"]
[BlackElo "2268"]
[TimeControl "180+2"]
[EndTime "14:37:35 PST"]
[Termination "Game drawn by agreement"]

1. e4 {[%clk 0:03:01.9]} 1... e5 {[%clk 0:02:22.1]} 2. Nf3 {[%clk 0:03:01.8]}
2... Nc6 {[%clk 0:02:17.9]} 3. Bc4 {[%clk 0:03:01.3]} 3... Bc5 {[%clk
0:02:15.7]} 4. c3 {[%clk 0:03:02.6]} 4... Bb6 {[%clk 0:02:11]} 5. a4 {[%clk
0:02:56.8]} 5... a5 {[%clk 0:02:10.4]} 6. d3 {[%clk 0:02:48.2]} 6... Nf6 {[%clk
0:02:11.3]} 7. O-O {[%clk 0:02:41.8]} 7... d6 {[%clk 0:02:12.6]} 8. Nbd2 {[%clk
0:02:39.8]} 8... Be6 {[%clk 0:02:09.9]} 9. Bb5 {[%clk 0:02:33.3]} 9... h6 {[%clk
0:02:08.8]} 10. h3 {[%clk 0:02:33.7]} 10... Qd7 {[%clk 0:02:09.2]} 11. Nc4
{[%clk 0:02:30]} 11... Ba7 {[%clk 0:01:17.5]} 12. Nxa5 {[%clk 0:01:53.4]} 12...
Bxf2+ {[%clk 0:00:58.6]} 13. Rxf2 {[%clk 0:01:53.1]} 13... Rxa5 {[%clk
0:00:58.5]} 14. b4 {[%clk 0:01:13.1]} 14... Ra8 {[%clk 0:00:56.5]} 15. Qe2
{[%clk 0:00:57.3]} 15... O-O {[%clk 0:00:51.8]} 16. d4 {[%clk 0:00:58.5]} 16...
exd4 {[%clk 0:00:51.8]} 17. cxd4 {[%clk 0:00:56.3]} 17... d5 {[%clk 0:00:52.5]}
18. Ne5 {[%clk 0:00:48.7]} 18... Nxd4 {[%clk 0:00:48.3]} 19. Nxd7 {[%clk
0:00:42.8]} 19... Nxe2+ {[%clk 0:00:49.1]} 20. Rxe2 {[%clk 0:00:34.7]} 20...
Bxd7 {[%clk 0:00:48.7]} 21. Bxd7 {[%clk 0:00:34.8]} 21... Nxd7 {[%clk
0:00:47.7]} 22. exd5 {[%clk 0:00:35.4]} 22... Nf6 {[%clk 0:00:41.1]} 23. Rd2
{[%clk 0:00:16.1]} 23... Rfd8 {[%clk 0:00:41.6]} 24. d6 {[%clk 0:00:16.1]} 24...
Rxd6 {[%clk 0:00:36.4]} 25. Rxd6 {[%clk 0:00:16.5]} 25... cxd6 {[%clk 0:00:32]}
26. a5 {[%clk 0:00:17.6]} 26... Rc8 {[%clk 0:00:29.3]} 27. b5 {[%clk 0:00:16.3]}
27... Nd5 {[%clk 0:00:29.7]} 28. a6 {[%clk 0:00:16.9]} 28... bxa6 {[%clk
0:00:30.5]} 29. bxa6 {[%clk 0:00:17.9]} 29... Ra8 {[%clk 0:00:31.8]} 30. a7
{[%clk 0:00:17.7]} 30... Kf8 {[%clk 0:00:32.6]} 31. Ra5 {[%clk 0:00:14.2]} 31...
Nc7 {[%clk 0:00:31.7]} 32. Be3 {[%clk 0:00:10.4]} 32... Ke7 {[%clk 0:00:31.7]}
33. Ra1 {[%clk 0:00:06.5]} 33... Kd7 {[%clk 0:00:32.7]} 34. Rb1 {[%clk
0:00:06.8]} 34... Kc8 {[%clk 0:00:32.8]} 35. Bd4 {[%clk 0:00:06.1]} 35... f6
{[%clk 0:00:33.7]} 36. Re1 {[%clk 0:00:06.2]} 36... Kb7 {[%clk 0:00:34]} 37. Re7
{[%clk 0:00:06.7]} 37... g5 {[%clk 0:00:32.5]} 38. Bxf6 {[%clk 0:00:07]} 38...
Rxa7 {[%clk 0:00:32.9]} 39. Bg7 {[%clk 0:00:05]} 39... Kc6 {[%clk 0:00:32.9]}
40. Bxh6 {[%clk 0:00:06.1]} 40... Ra5 {[%clk 0:00:32.2]} 41. Rg7 {[%clk
0:00:06.5]} 41... Ne6 {[%clk 0:00:33.4]} 42. Rg6 {[%clk 0:00:07.7]} 42... Kd7
{[%clk 0:00:34.7]} 43. Bg7 {[%clk 0:00:08.2]} 43... Nxg7 {[%clk 0:00:34.8]} 44.
Rxg7+ {[%clk 0:00:09.4]} 44... Ke6 {[%clk 0:00:36.3]} 45. g3 {[%clk 0:00:10]}
45... Kf6 {[%clk 0:00:37]} 46. Rd7 {[%clk 0:00:10.3]} 46... d5 {[%clk
0:00:38.4]} 47. h4 {[%clk 0:00:10.4]} 47... gxh4 {[%clk 0:00:39.6]} 48. gxh4
{[%clk 0:00:11.7]} 48... Ke6 {[%clk 0:00:41.3]} 49. Rd8 {[%clk 0:00:12.4]} 49...
Ra2 {[%clk 0:00:40.7]} 50. Kh1 {[%clk 0:00:09.8]} 50... Ra4 {[%clk 0:00:40.3]}
51. Kg2 {[%clk 0:00:09.3]} 51... Rxh4 {[%clk 0:00:41.4]} 52. Kf2 {[%clk
0:00:10.3]} 52... Re4 {[%clk 0:00:42.7]} 53. Kf3 {[%clk 0:00:10.8]} 53... Ke5
{[%clk 0:00:42.3]} 54. Re8+ {[%clk 0:00:10.8]} 54... Kd4 {[%clk 0:00:43.7]} 55.
Rxe4+ {[%clk 0:00:08.6]} 55... dxe4+ {[%clk 0:00:45]} 56. Ke2 {[%clk 0:00:10.2]}
56... Kd5 {[%clk 0:00:45.1]} 1/2-1/2

[Event "*** MasterClass Titled Tuesday Blitz"]
[Site "Chess.com"]
[Date "2017.12.05"]
[Round "2"]
[White "tango_argentino"]
[Black "jjosu"]
[Result "1/2-1/2"]
[WhiteElo "2521"]
[BlackElo "2513"]
[TimeControl "180+2"]
[EndTime "14:37:39 PST"]
[Termination "Game drawn by stalemate"]

1. e4 {[%clk 0:02:57.4]} 1... c5 {[%clk 0:02:59.9]} 2. a3 {[%clk 0:02:54.8]}
2... Nf6 {[%clk 0:02:54.3]} 3. e5 {[%clk 0:02:50]} 3... Nd5 {[%clk 0:02:55.6]}
4. c4 {[%clk 0:02:47.8]} 4... Nc7 {[%clk 0:02:55.9]} 5. b4 {[%clk 0:02:48.2]}
5... d6 {[%clk 0:02:54.5]} 6. Nf3 {[%clk 0:02:43.4]} 6... Nc6 {[%clk 0:02:52.2]}
7. exd6 {[%clk 0:02:40.2]} 7... exd6 {[%clk 0:02:54.1]} 8. b5 {[%clk 0:02:41.8]}
8... Ne5 {[%clk 0:02:55.2]} 9. Nxe5 {[%clk 0:02:42.1]} 9... dxe5 {[%clk
0:02:57.1]} 10. Bb2 {[%clk 0:02:43.5]} 10... Bd6 {[%clk 0:02:58.6]} 11. Nc3
{[%clk 0:02:32.7]} 11... f5 {[%clk 0:02:54.3]} 12. Qh5+ {[%clk 0:02:30.4]} 12...
g6 {[%clk 0:02:54.9]} 13. Qf3 {[%clk 0:02:26.5]} 13... O-O {[%clk 0:02:55.6]}
14. Nd5 {[%clk 0:02:19.6]} 14... Be6 {[%clk 0:02:51.7]} 15. Nxc7 {[%clk
0:02:19.8]} 15... Qxc7 {[%clk 0:02:53.6]} 16. h4 {[%clk 0:02:19.2]} 16... f4
{[%clk 0:02:48.3]} 17. h5 {[%clk 0:02:17.8]} 17... Bf5 {[%clk 0:02:49.6]} 18.
hxg6 {[%clk 0:02:14.8]} 18... Bxg6 {[%clk 0:02:51.5]} 19. Qh3 {[%clk 0:02:03.1]}
19... Qc8 {[%clk 0:02:49.6]} 20. Qh6 {[%clk 0:01:52.8]} 20... Qf5 {[%clk
0:02:50.5]} 21. d3 {[%clk 0:01:44.8]} 21... Rfe8 {[%clk 0:02:50.4]} 22. f3
{[%clk 0:01:43.4]} 22... Bf8 {[%clk 0:02:50.5]} 23. Qh4 {[%clk 0:01:38.6]} 23...
Rad8 {[%clk 0:02:51.1]} 24. O-O-O {[%clk 0:01:36.7]} 24... a6 {[%clk 0:02:51.4]}
25. b6 {[%clk 0:01:21.1]} 25... Rd6 {[%clk 0:02:50.6]} 26. g3 {[%clk 0:01:19.4]}
26... Rxb6 {[%clk 0:02:48.9]} 27. Bh3 {[%clk 0:01:18.5]} 27... Qf7 {[%clk
0:02:49.6]} 28. gxf4 {[%clk 0:01:17.5]} 28... exf4 {[%clk 0:02:14.7]} 29. Rh2
{[%clk 0:00:44.8]} 29... Bg7 {[%clk 0:02:02.6]} 30. Qg5 {[%clk 0:00:39.1]} 30...
Bxb2+ {[%clk 0:01:51.2]} 31. Rxb2 {[%clk 0:00:41]} 31... Rxb2 {[%clk 0:01:53.1]}
32. Kxb2 {[%clk 0:00:42]} 32... b5 {[%clk 0:01:50]} 33. Qxc5 {[%clk 0:00:38.3]}
33... Re2+ {[%clk 0:01:49.8]} 34. Kb3 {[%clk 0:00:33.5]} 34... Qf6 {[%clk
0:01:43.9]} 35. Kb4 {[%clk 0:00:16.8]} 35... Rb2+ {[%clk 0:00:44.1]} 36. Ka5
{[%clk 0:00:17.2]} 36... Qd8+ {[%clk 0:00:45.8]} 37. Kxa6 {[%clk 0:00:16.8]}
37... bxc4 {[%clk 0:00:23.5]} 38. Qxc4+ {[%clk 0:00:17.5]} 38... Kg7 {[%clk
0:00:25]} 39. Qc3+ {[%clk 0:00:18.9]} 39... Kh6 {[%clk 0:00:26.5]} 40. Qxb2
{[%clk 0:00:20]} 40... Qa8+ {[%clk 0:00:28.2]} 41. Kb6 {[%clk 0:00:17.3]} 41...
Qb8+ {[%clk 0:00:30.1]} 42. Kc5 {[%clk 0:00:18.9]} 42... Qxb2 {[%clk 0:00:32]}
43. Rh1 {[%clk 0:00:15.5]} 43... Qxa3+ {[%clk 0:00:32.9]} 44. Kd5 {[%clk
0:00:16.4]} 44... Qxd3+ {[%clk 0:00:34]} 45. Ke5 {[%clk 0:00:17.5]} 45... Qe3+
{[%clk 0:00:35.1]} 46. Kf6 {[%clk 0:00:18.5]} 46... Qd4+ {[%clk 0:00:33.6]} 47.
Ke7 {[%clk 0:00:19.3]} 47... Kg7 {[%clk 0:00:34.9]} 48. Be6 {[%clk 0:00:19.9]}
48... Qc5+ {[%clk 0:00:35.8]} 49. Kd8 {[%clk 0:00:17.8]} 49... Qd6+ {[%clk
0:00:36.7]} 50. Bd7 {[%clk 0:00:19.1]} 50... Bf5 {[%clk 0:00:38]} 51. Kc8 {[%clk
0:00:05.7]} 51... Qxd7+ {[%clk 0:00:37.5]} 52. Kb8 {[%clk 0:00:07.6]} 52... Qb5+
{[%clk 0:00:38.7]} 53. Ka8 {[%clk 0:00:08.9]} 53... Qa6+ {[%clk 0:00:39.4]} 54.
Kb8 {[%clk 0:00:10.1]} 54... Qc8+ {[%clk 0:00:39.4]} 55. Ka7 {[%clk 0:00:11.3]}
55... Qc7+ {[%clk 0:00:40.9]} 56. Ka8 {[%clk 0:00:12.5]} 56... Bc8 {[%clk
0:00:40.3]} 57. Rxh7+ {[%clk 0:00:13]} 57... Kxh7 {[%clk 0:00:41.3]} 1/2-1/2

[Event "*** MasterClass Titled Tuesday Blitz"]
[Site "Chess.com"]
[Date "2017.12.05"]
[Round "2"]
[White "Jahonas"]
[Black "tteshan"]
[Result "1/2-1/2"]
[WhiteElo "2226"]
[BlackElo "2015"]
[TimeControl "180+2"]
[EndTime "14:37:46 PST"]
[Termination "Game drawn by agreement"]

1. d4 {[%clk 0:03:00.6]} 1... d5 {[%clk 0:03:00]} 2. c4 {[%clk 0:02:59.9]} 2...
dxc4 {[%clk 0:03:01]} 3. e3 {[%clk 0:03:00.1]} 3... e5 {[%clk 0:03:01.2]} 4.
dxe5 {[%clk 0:02:58]} 4... Qxd1+ {[%clk 0:03:01.2]} 5. Kxd1 {[%clk 0:02:59.3]}
5... Nc6 {[%clk 0:02:59]} 6. Nf3 {[%clk 0:02:56.9]} 6... Bg4 {[%clk 0:02:58.6]}
7. Bxc4 {[%clk 0:02:56.7]} 7... Nxe5 {[%clk 0:02:54.8]} 8. Be2 {[%clk 0:02:57]}
8... Nxf3 {[%clk 0:02:55.4]} 9. gxf3 {[%clk 0:02:56.2]} 9... O-O-O+ {[%clk
0:02:55.2]} 10. Kc2 {[%clk 0:02:56.7]} 10... Bf5+ {[%clk 0:02:55.3]} 11. e4
{[%clk 0:02:57.6]} 11... Be6 {[%clk 0:02:54.5]} 12. Nc3 {[%clk 0:02:57.9]} 12...
Bc5 {[%clk 0:02:53.3]} 13. Be3 {[%clk 0:02:58.7]} 13... Bxe3 {[%clk 0:02:53.5]}
14. fxe3 {[%clk 0:03:00.6]} 14... Ne7 {[%clk 0:02:53.3]} 15. f4 {[%clk
0:03:01.4]} 15... Nc6 {[%clk 0:02:53.1]} 16. a3 {[%clk 0:03:00.7]} 16... g6
{[%clk 0:02:52.2]} 17. Rad1 {[%clk 0:02:58.9]} 17... Na5 {[%clk 0:02:46.8]} 18.
Rd4 {[%clk 0:02:37]} 18... c5 {[%clk 0:02:32.3]} 19. Rxd8+ {[%clk 0:02:36.2]}
19... Rxd8 {[%clk 0:02:32.1]} 20. b4 {[%clk 0:02:33.2]} 20... cxb4 {[%clk
0:02:32.3]} 21. axb4 {[%clk 0:02:34]} 21... Nc6 {[%clk 0:02:31.2]} 22. Rb1
{[%clk 0:02:30.8]} 22... Kd7 {[%clk 0:02:08.4]} 23. Rd1+ {[%clk 0:02:28.2]}
23... Ke7 {[%clk 0:02:08.3]} 24. Rxd8 {[%clk 0:02:28]} 24... Kxd8 {[%clk
0:02:08.9]} 25. b5 {[%clk 0:02:28.7]} 25... Nb4+ {[%clk 0:02:06.1]} 26. Kb2
{[%clk 0:02:26.3]} 26... Kc7 {[%clk 0:02:05.9]} 27. Nb1 {[%clk 0:02:10.5]} 27...
a5 {[%clk 0:02:02.7]} 28. bxa6 {[%clk 0:02:03.1]} 28... bxa6 {[%clk 0:02:01.2]}
29. Kc3 {[%clk 0:02:02.7]} 29... a5 {[%clk 0:02:01.4]} 30. Na3 {[%clk
0:02:01.7]} 30... Nc6 {[%clk 0:01:53.7]} 31. Bd3 {[%clk 0:01:57.5]} 31... Kb6
{[%clk 0:01:51.5]} 32. e5 {[%clk 0:01:54.2]} 32... Nb4 {[%clk 0:01:48.1]} 33.
Bb1 {[%clk 0:01:47.7]} 33... Nd5+ {[%clk 0:01:46.6]} 34. Kd4 {[%clk 0:01:47.7]}
34... Ne7 {[%clk 0:01:45.5]} 35. e4 {[%clk 0:01:46.8]} 35... Nc6+ {[%clk
0:01:44.7]} 36. Kc3 {[%clk 0:01:43]} 36... Kc5 {[%clk 0:01:38.1]} 37. h4 {[%clk
0:01:36.5]} 37... Nd4 {[%clk 0:01:34.7]} 38. Bd3 {[%clk 0:01:35]} 38... Bd7
{[%clk 0:01:29.8]} 39. Nc4 {[%clk 0:01:25]} 39... a4 {[%clk 0:01:22.3]} 40. Nd6
{[%clk 0:01:21.9]} 40... Nb5+ {[%clk 0:01:21.9]} 41. Bxb5 {[%clk 0:01:18]} 41...
Bxb5 {[%clk 0:01:21.5]} 42. Nxf7 {[%clk 0:01:11.7]} 42... Bc6 {[%clk 0:01:19.1]}
43. Nd6 {[%clk 0:01:09.5]} 43... Bd7 {[%clk 0:01:05.7]} 44. Nc4 {[%clk
0:00:55.5]} 44... Bc6 {[%clk 0:00:59.9]} 45. Nd2 {[%clk 0:00:52.6]} 45... Bd7
{[%clk 0:00:58.5]} 46. Nc4 {[%clk 0:00:38.1]} 46... Bc6 {[%clk 0:00:57.2]} 47.
Nd6 {[%clk 0:00:39.3]} 47... Bd7 {[%clk 0:00:57.5]} 48. f5 {[%clk 0:00:40.1]}
48... gxf5 {[%clk 0:00:56.3]} 49. Nxf5 {[%clk 0:00:30.8]} 49... Bc6 {[%clk
0:00:52.9]} 50. Nd6 {[%clk 0:00:25.1]} 50... Bd7 {[%clk 0:00:51.4]} 51. Nc4
{[%clk 0:00:25.1]} 51... Bc6 {[%clk 0:00:50]} 52. e6 {[%clk 0:00:23.9]} 52...
Bxe4 {[%clk 0:00:50.1]} 53. e7 {[%clk 0:00:23.5]} 53... Bc6 {[%clk 0:00:47.8]}
54. Ne5 {[%clk 0:00:16.7]} 54... Be8 {[%clk 0:00:47.9]} 55. Ng4 {[%clk
0:00:17.3]} 55... Kd6 {[%clk 0:00:47]} 56. Nf6 {[%clk 0:00:18.4]} 56... Kxe7
{[%clk 0:00:47.4]} 57. Nxh7 {[%clk 0:00:19.5]} 57... Bg6 {[%clk 0:00:46.7]} 58.
Ng5 {[%clk 0:00:20.5]} 58... Kf6 {[%clk 0:00:46.8]} 59. Nf3 {[%clk 0:00:20.1]}
1/2-1/2